bitfinex/quotes_BTCUSD_20250208
["timestamp","ask_amount","ask_price","bid_price","bid_amount"]
[1739035445220,0.67939236,96255.0,96254.0,2.29188871]
[1739035445861,0.68839236,96255.0,96254.0,2.29188871]
[1739035446208,0.69739236,96255.0,96254.0,2.29188871]
[1739035446611,0.68839236,96255.0,96254.0,2.29188871]
[1739035447074,0.69739236,96255.0,96254.0,2.29188871]
[1739035449918,0.74359236,96255.0,96254.0,2.29188871]
[1739035450135,0.74359236,96255.0,96254.0,2.27111071]
[1739035450965,0.73459236,96255.0,96254.0,2.20877671]
[1739035451165,0.71659236,96255.0,96254.0,2.20877671]
[1739035451470,0.73459236,96255.0,96254.0,2.20877671]
[1739035451640,0.73459236,96255.0,96254.0,1.68878685]
[1739035452338,0.72559236,96255.0,96254.0,1.68878685]
[1739035452540,0.73459236,96255.0,96254.0,1.64723085]
[1739035452757,0.73459236,96255.0,96254.0,1.62645285]
[1739035452959,0.72559236,96255.0,96254.0,1.62645285]
[1739035453095,0.73459236,96255.0,96254.0,1.62645285]
[1739035453674,0.72559236,96255.0,96254.0,1.62645285]
[1739035454010,0.73459236,96255.0,96254.0,1.62645285]
[1739035455977,0.72559236,96255.0,96254.0,1.62645285]
[1739035456722,0.73459236,96255.0,96254.0,1.62645285]
[1739035459572,0.88459236,96255.0,96254.0,1.52256285]
[1739035459769,0.92378172,96255.0,96254.0,1.52256285]
[1739035460682,0.92378172,96255.0,96254.0,1.49518547]
[1739035460881,0.90578172,96255.0,96254.0,1.49518547]
[1739035461282,0.91478172,96255.0,96254.0,1.47435523]
[1739035462865,0.92378172,96255.0,96254.0,1.47435523]
[1739035463492,0.75529236,96255.0,96254.0,1.47435523]
[1739035463707,0.65463798,96255.0,96254.0,1.47435523]
[1739035463920,0.66251798,96255.0,96254.0,1.47435523]
[1739035464676,0.64451798,96255.0,96254.0,1.47435523]
[1739035465069,0.65351798,96255.0,96254.0,1.47435523]
[1739035465270,0.75602163,96255.0,96254.0,1.47435523]
[1739035466005,0.76502163,96255.0,96254.0,1.47435523]
[1739035466597,0.75602163,96255.0,96254.0,1.47435523]
[1739035466800,0.76502163,96255.0,96254.0,1.47435523]
[1739035467262,0.75602163,96255.0,96254.0,1.47435523]
[1739035467642,0.76502163,96255.0,96254.0,1.47435523]
[1739035469227,0.66251798,96255.0,96254.0,1.47435523]
[1739035469628,0.65351798,96255.0,96254.0,1.47435523]
[1739035470093,0.66251798,96255.0,96254.0,1.47435523]
[1739035470280,0.65351798,96255.0,96254.0,1.47435523]
[1739035470822,0.66251798,96255.0,96254.0,1.47435523]
[1739035471007,0.75602163,96255.0,96254.0,1.47435523]
[1739035471146,0.76502163,96255.0,96254.0,1.47435523]
[1739035472670,0.75602163,96255.0,96254.0,1.47435523]
[1739035473304,0.76502163,96255.0,96254.0,1.47435523]
[1739035473436,0.75602163,96255.0,96254.0,1.47435523]
[1739035473645,0.74702163,96255.0,96254.0,1.47435523]
[1739035474071,0.83106402,96255.0,96254.0,1.47435523]
[1739035474255,0.84006402,96255.0,96254.0,1.47435523]
[1739035474451,0.73756037,96255.0,96254.0,1.47435523]
[1739035474656,0.72856037,96255.0,96254.0,1.47435523]
[1739035475067,0.73756037,96255.0,96254.0,1.47435523]
[1739035475500,0.57068037,96255.0,96254.0,1.47435523]
[1739035475686,0.58756037,96255.0,96254.0,1.47435523]
[1739035475891,0.57856037,96255.0,96254.0,1.47435523]
[1739035476124,0.56956037,96255.0,96254.0,1.47435523]
[1739035476466,0.57856037,96255.0,96254.0,1.47435523]
[1739035477077,0.56956037,96255.0,96254.0,1.47435523]
[1739035477284,0.58756037,96255.0,96254.0,1.47435523]
[1739035477491,0.57856037,96255.0,96254.0,1.47435523]
[1739035478124,0.58756037,96255.0,96254.0,1.47435523]
[1739035478331,0.57968037,96255.0,96254.0,1.47435523]
[1739035478554,0.58756037,96255.0,96254.0,1.47435523]
[1739035478940,0.56956037,96255.0,96254.0,1.47435523]
[1739035479144,0.58756037,96255.0,96254.0,1.47435523]
[1739035479820,0.57856037,96255.0,96254.0,1.47435523]
[1739035480027,0.58756037,96255.0,96254.0,1.47435523]
[1739035480478,0.57856037,96255.0,96254.0,1.47435523]
[1739035480883,0.58756037,96255.0,96254.0,1.47435523]
[1739035481283,0.57856037,96255.0,96254.0,1.47435523]
[1739035481661,0.58756037,96255.0,96254.0,1.47435523]
[1739035482661,0.57856037,96255.0,96254.0,1.47435523]
[1739035483079,0.58756037,96255.0,96254.0,1.47435523]
[1739035483569,0.57856037,96255.0,96254.0,1.47435523]
[1739035484298,0.56956037,96255.0,96254.0,1.47435523]
[1739035484657,0.57856037,96255.0,96254.0,1.47435523]
[1739035484855,0.58756037,96255.0,96254.0,1.47435523]
[1739035485359,0.59656037,96255.0,96254.0,1.47435523]
[1739035485518,0.58756037,96255.0,96254.0,1.47435523]
[1739035485673,0.59656037,96255.0,96254.0,1.47435523]
[1739035486078,0.58756037,96255.0,96254.0,1.47435523]
[1739035486435,0.59656037,96255.0,96254.0,1.47435523]
[1739035486806,0.57850108,96255.0,96254.0,1.47435523]
[1739035487146,0.58750108,96255.0,96254.0,1.47435523]
[1739035495803,0.68867377,96255.0,96254.0,1.47435523]
[1739035498464,0.58750108,96255.0,96254.0,1.47435523]
[1739035498601,0.44898364,96255.0,96254.0,1.47435523]
[1739035499009,0.60481964,96255.0,96254.0,1.47435523]
[1739035502094,0.33859999,96255.0,96254.0,1.59965523]
[1739035502293,0.01839999,96255.0,96254.0,1.59965523]
[1739035502649,0.01839999,96255.0,96254.0,1.76533057]
[1739035503080,0.00939999,96255.0,96254.0,1.76533057]
[1739035503291,0.01839999,96255.0,96254.0,1.76533057]
[1739035503657,0.00939999,96255.0,96254.0,1.76533057]
[1739035504459,0.01739999,96255.0,96254.0,1.76533057]
[1739035504665,0.00939999,96255.0,96254.0,1.76533057]
[1739035505068,0.01239999,96255.0,96254.0,1.76533057]
[1739035505247,0.00339999,96255.0,96254.0,1.76533057]
[1739035505450,0.00639999,96255.0,96254.0,1.76533057]
[1739035513258,0.00339999,96255.0,96254.0,1.76533057]
[1739035513696,0.00639999,96255.0,96254.0,1.76533057]
[1739035514219,0.00339999,96255.0,96254.0,1.76533057]
[1739035514558,0.00539999,96255.0,96254.0,1.76533057]
[1739035514758,0.00239999,96255.0,96254.0,1.76533057]
[1739035514986,0.00039999,96255.0,96254.0,1.76533057]
[1739035515198,0.00339999,96255.0,96254.0,1.76533057]
[1739035515400,0.00539999,96255.0,96254.0,1.76533057]
[1739035515779,0.00339999,96255.0,96254.0,1.76533057]
[1739035516209,0.00639999,96255.0,96254.0,1.76533057]
[1739035516928,0.00339999,96255.0,96254.0,1.76533057]
[1739035517346,0.00639999,96255.0,96254.0,1.76533057]
[1739035517560,0.00039999,96255.0,96254.0,1.76533057]
[1739035518073,0.00439999,96255.0,96254.0,1.76533057]
[1739035518496,0.00739999,96255.0,96254.0,1.76533057]
[1739035518699,0.00739999,96255.0,96254.0,1.74576014]
[1739035518859,0.00739999,96255.0,96254.0,1.76354652]
[1739035523283,0.00339999,96255.0,96254.0,1.76354652]
[1739035523488,0.00739999,96255.0,96254.0,2.01605017]
[1739035523894,0.00439999,96255.0,96254.0,2.01605017]
[1739035524095,0.00739999,96255.0,96254.0,2.01605017]
[1739035524318,0.00339999,96255.0,96254.0,2.01605017]
[1739035524641,0.00239999,96255.0,96254.0,2.01605017]
[1739035525244,0.00339999,96255.0,96254.0,2.01605017]
[1739035526068,0.00339999,96255.0,96254.0,2.01529255]
[1739035526470,0.00039999,96255.0,96254.0,2.01529255]
[1739035527020,0.00139999,96255.0,96254.0,2.01529255]
[1739035527519,0.00239999,96255.0,96254.0,2.01529255]
[1739035527852,0.00039999,96255.0,96254.0,2.01529255]
[1739035528862,0.00139999,96255.0,96254.0,2.01529255]
[1739035530345,0.00139999,96255.0,96254.0,2.03829255]
[1739035531638,0.00039999,96255.0,96254.0,2.03829255]
[1739035532063,0.00139999,96255.0,96254.0,2.03829255]
[1739035533910,0.00139999,96255.0,96254.0,2.06925337]
[1739035534755,0.00139999,96255.0,96254.0,2.03829255]
[1739035541769,0.00039999,96255.0,96254.0,2.03829255]
[1739035542102,0.00139999,96255.0,96254.0,2.03829255]
[1739035542407,0.00039999,96255.0,96254.0,2.03829255]
[1739035542744,0.00139999,96255.0,96254.0,2.03829255]
[1739035544448,0.00039999,96255.0,96254.0,2.03829255]
[1739035544566,0.00139999,96255.0,96254.0,2.03829255]
[1739035545683,0.00139999,96255.0,96254.0,2.04829255]
[1739035545911,0.08350077,96288.0,96287.0,0.155784]
[1739035546321,0.00022428,96299.0,96287.0,0.02075512]
[1739035546519,0.00022428,96299.0,96295.0,0.155769]
[1739035546742,0.00022428,96299.0,96296.0,0.0010383]
[1739035546951,0.00022428,96299.0,96296.0,0.02074941]
[1739035547119,0.00026948,96299.0,96296.0,0.02074941]
[1739035547532,0.00026948,96299.0,96298.0,0.155766]
[1739035547713,0.00026948,96299.0,96298.0,0.15680424]
[1739035547917,0.00026948,96299.0,96298.0,0.17650435]
[1739035548127,0.00026948,96299.0,96298.0,0.429008]
[1739035548323,0.00026948,96299.0,96298.0,0.42796976]
[1739035548779,0.00926948,96299.0,96298.0,0.42796976]
[1739035548974,0.01826948,96299.0,96298.0,0.42796976]
[1739035549323,0.01526948,96299.0,96298.0,0.43762431]
[1739035550575,0.00026948,96299.0,96298.0,0.43762431]
[1739035550781,0.00126948,96299.0,96298.0,0.43762431]
[1739035551428,0.00226948,96299.0,96298.0,0.43762431]
[1739035552102,0.00226948,96299.0,96298.0,0.17935466]
[1739035552990,0.00226948,96299.0,96298.0,0.18039295]
[1739035553158,0.00726948,96299.0,96298.0,0.18039295]
[1739035553924,0.00526948,96299.0,96298.0,0.18039295]
[1739035554263,0.00626948,96299.0,96298.0,0.18039295]
[1739035554682,0.00626948,96299.0,96298.0,0.17935466]
[1739035554887,0.01126948,96299.0,96298.0,0.17935466]
[1739035556374,0.16703348,96299.0,96298.0,0.17935466]
[1739035556614,0.01126948,96299.0,96298.0,0.17935466]
[1739035559312,0.01126948,96299.0,96298.0,0.33615895]
[1739035559541,0.01126948,96299.0,96298.0,0.33512066]
[1739035563083,0.08826948,96299.0,96298.0,0.17935466]
[1739035563276,0.24403348,96299.0,96298.0,0.17935466]
[1739035563498,0.28953348,96299.0,96298.0,0.17935466]
[1739035563711,0.13376948,96299.0,96298.0,0.17935466]
[1739035564136,0.28953348,96299.0,96298.0,0.17935466]
[1739035564453,0.28953348,96299.0,96298.0,0.01970011]
[1739035564861,0.13376948,96299.0,96277.0,0.2078387]
[1739035565039,0.13376948,96299.0,96280.0,0.305795]
[1739035565413,0.155781,96289.0,96282.0,0.15]
[1739035565622,0.12876948,96299.0,96282.0,0.15]
[1739035565806,0.155783,96288.0,96282.0,0.15]
[1739035566013,0.155783,96288.0,96283.0,0.01968329]
[1739035567131,0.006,96289.0,96283.0,0.01968329]
[1739035567542,0.005,96288.0,96283.0,0.01968329]
[1739035568338,0.011,96288.0,96283.0,0.01968329]
[1739035568956,0.155788,96285.0,96283.0,0.01968329]
[1739035569303,0.155788,96285.0,96278.0,0.15]
[1739035569304,0.077,96284.0,96278.0,0.15]
[1739035569509,0.077,96284.0,96279.0,0.0196919]
[1739035569712,0.077,96284.0,96280.0,0.15]
[1739035569852,0.077,96284.0,96281.0,0.01969065]
[1739035570471,0.15579,96283.0,96281.0,0.01969065]
[1739035570675,0.155792,96282.0,96281.0,0.01969065]
[1739035571056,0.15579,96283.0,96277.0,0.01027565]
[1739035571414,0.15579,96283.0,96278.0,0.02017201]
[1739035572041,0.01,96282.0,96278.0,0.02017201]
[1739035572238,0.005,96282.0,96278.0,0.02017201]
[1739035572562,0.077,96284.0,96278.0,0.02017201]
[1739035572759,0.155797,96279.0,96278.0,0.02017201]
[1739035572899,0.201294,96281.0,96278.0,0.02017201]
[1739035573104,0.253226,96281.0,96277.0,0.01027565]
[1739035573711,0.201294,96281.0,96277.0,0.01027565]
[1739035573912,0.0455,96281.0,96277.0,0.01027565]
[1739035574547,0.0455,96281.0,96278.0,0.02017201]
[1739035574728,0.0525,96281.0,96278.0,0.02017201]
[1739035575109,0.0605,96281.0,96278.0,0.02017201]
[1739035575370,0.0605,96281.0,96277.0,0.01027565]
[1739035575515,0.155795,96280.0,96277.0,0.01027565]
[1739035576121,0.155798,96278.0,96277.0,0.01027565]
[1739035577521,0.155798,96278.0,96277.0,0.0001067]
[1739035578482,0.162798,96278.0,96277.0,0.0001067]
[1739035579262,0.170798,96278.0,96277.0,0.0001067]
[1739035581993,0.247398,96278.0,96277.0,0.0001067]
[1739035583657,0.12896276,96278.0,96277.0,0.0001067]
[1739035584533,0.28476076,96278.0,96277.0,0.0001067]
[1739035587694,0.60496076,96278.0,96277.0,0.0001067]
[1739035588767,0.70746441,96278.0,96277.0,0.0001067]
[1739035588936,0.60496076,96278.0,96277.0,0.0001067]
[1739035591770,0.65086076,96278.0,96277.0,0.0001067]
[1739035593340,0.65986076,96278.0,96277.0,0.0011067]
[1739035593493,0.65986076,96278.0,96277.0,0.0001067]
[1739035593765,0.66886076,96278.0,96277.0,0.0011067]
[1739035593947,0.70960453,96278.0,96277.0,0.0021067]
[1739035594147,0.70060453,96278.0,96277.0,0.0011067]
[1739035594350,0.70960453,96278.0,96277.0,0.0021067]
[1739035595168,0.67786076,96278.0,96277.0,0.0021067]
[1739035596151,0.67808504,96278.0,96277.0,0.0021067]
[1739035596572,0.69863461,96278.0,96277.0,0.0021067]
[1739035596976,0.67808504,96278.0,96277.0,0.0021067]
[1739035597951,0.65162593,96278.0,96277.0,0.0021067]
[1739035598153,0.65950593,96278.0,96277.0,0.0021067]
[1739035600318,0.76200958,96278.0,96277.0,0.0021067]
[1739035600515,0.83800958,96278.0,96277.0,0.0021067]
[1739035601495,0.73550593,96278.0,96277.0,0.0021067]
[1739035605199,0.75495867,96278.0,96277.0,0.0021067]
[1739035605946,0.73550593,96278.0,96277.0,0.0021067]
[1739035618008,0.65950593,96278.0,96277.0,0.0021067]
[1739035618214,0.61360593,96278.0,96277.0,0.0021067]
[1739035620821,0.71610958,96278.0,96277.0,0.0021067]
[1739035621017,0.73557587,96278.0,96277.0,0.0021067]
[1739035621824,0.63307222,96278.0,96277.0,0.0021067]
[1739035624446,0.74825324,96278.0,96277.0,0.0021067]
[1739035626379,0.85763888,96278.0,96277.0,0.0021067]
[1739035627218,0.84863888,96278.0,96277.0,0.0011067]
[1739035627359,0.83063888,96278.0,96277.0,0.0001067]
[1739035627562,0.94214253,96278.0,96277.0,0.0011067]
[1739035628206,1.09214253,96278.0,96277.0,0.0011067]
[1739035628381,1.10114253,96278.0,96277.0,0.0011067]
[1739035629394,0.155836,96255.0,96254.0,1.45398189]
[1739035629596,0.57853965,96255.0,96254.0,1.45398189]
[1739035629814,0.57853965,96255.0,96254.0,1.47465658]
[1739035630629,0.58753965,96255.0,96254.0,1.47470187]
[1739035631919,0.59653965,96255.0,96254.0,1.47470187]
[1739035633819,0.61600827,96255.0,96254.0,1.47470187]
[1739035637031,0.59653965,96255.0,96254.0,1.47470187]
[1739035637370,0.6990433,96255.0,96254.0,1.47470187]
[1739035637570,0.59653965,96255.0,96254.0,1.47470187]
[1739035641738,0.59653965,96255.0,96254.0,1.55560187]
[1739035643389,0.494036,96255.0,96254.0,1.55560187]
[1739035643562,0.3382,96255.0,96254.0,1.55560187]
[1739035644063,0.494036,96255.0,96254.0,1.55560187]
[1739035647052,0.173836,96255.0,96254.0,1.55560187]
[1739035651928,0.164836,96255.0,96254.0,1.55560187]
[1739035652253,0.173836,96255.0,96254.0,1.55560187]
[1739035652810,0.018,96255.0,96254.0,1.55560187]
[1739035653010,0.009,96255.0,96254.0,1.55560187]
[1739035654372,0.155828,96260.0,96255.0,0.0809]
[1739035654527,0.155826,96261.0,96256.0,0.0206847]
[1739035654729,0.155826,96261.0,96257.0,0.0809]
[1739035655208,0.155825,96262.0,96257.0,0.0809]
[1739035655394,0.155825,96262.0,96259.0,0.0809]
[1739035655607,0.155825,96262.0,96260.0,0.0206822]
[1739035655812,0.32804,96276.0,96261.0,0.0809]
[1739035655813,0.3202,96276.0,96261.0,0.0809]
[1739035656027,0.155813,96269.0,96263.0,0.0809]
[1739035656237,0.155815,96268.0,96263.0,0.0809]
[1739035656452,0.155815,96268.0,96264.0,0.02067548]
[1739035656718,0.32042428,96277.0,96263.0,0.0809]
[1739035656909,0.155815,96268.0,96265.0,0.02067486]
[1739035657105,0.32042428,96277.0,96263.0,0.0809]
[1739035657344,0.155816,96267.0,96266.0,0.02067423]
[1739035657529,0.15582,96265.0,96263.0,0.0809]
[1739035658700,0.155821,96264.0,96263.0,0.0809]
[1739035658930,0.155832,96258.0,96255.0,0.0781]
[1739035659138,0.15583,96259.0,96255.0,0.0781]
[1739035659374,0.15583,96259.0,96256.0,0.02068048]
[1739035659734,0.0471,96276.0,96256.0,0.02068048]
[1739035659735,0.009,96267.0,96256.0,0.02068048]
[1739035660160,0.155832,96257.0,96256.0,0.02068048]
[1739035660870,0.155831,96258.0,96256.0,0.02068048]
[1739035661914,0.155832,96257.0,96256.0,0.02068048]
[1739035662320,0.163832,96257.0,96256.0,0.02068048]
[1739035662526,0.155836,96255.0,96254.0,1.45402718]
[1739035664397,0.162836,96255.0,96254.0,1.45402718]
[1739035664575,0.170836,96255.0,96254.0,1.45402718]
[1739035668478,0.170836,96255.0,96254.0,1.47470722]
[1739035671803,0.29012392,96255.0,96254.0,1.47470722]
[1739035672032,0.27333965,96255.0,96254.0,1.47470722]
[1739035672414,0.28117965,96255.0,96254.0,1.47470722]
[1739035672668,0.30063846,96255.0,96254.0,1.47470722]
[1739035673008,0.29363846,96255.0,96254.0,1.47470722]
[1739035673210,0.29463846,96255.0,96254.0,1.47470722]
[1739035673412,0.30363846,96255.0,96254.0,1.47470722]
[1739035673853,0.62383846,96255.0,96254.0,1.47470722]
[1739035674863,0.63283846,96255.0,96254.0,1.47470722]
[1739035676037,0.61483846,96255.0,96254.0,1.47470722]
[1739035676262,0.60583846,96255.0,96254.0,1.47470722]
[1739035676463,0.62383846,96255.0,96254.0,1.47470722]
[1739035677704,0.60583846,96255.0,96254.0,1.47470722]
[1739035677918,0.61483846,96255.0,96254.0,1.47470722]
[1739035678130,0.62383846,96255.0,96254.0,1.47470722]
[1739035680916,0.72634211,96255.0,96254.0,1.47470722]
[1739035682442,0.71734211,96255.0,96254.0,1.47470722]
[1739035682942,0.72634211,96255.0,96254.0,1.47470722]
[1739035683155,0.72634211,96255.0,96254.0,1.4294513]
[1739035683912,0.7068833,96255.0,96254.0,1.4294513]
[1739035684945,0.50616378,96255.0,96254.0,1.4294513]
[1739035685180,0.40366013,96255.0,96254.0,1.4294513]
[1739035685590,0.55949613,96255.0,96254.0,1.4294513]
[1739035688482,0.55972041,96255.0,96254.0,1.4294513]
[1739035690092,0.57918519,96255.0,96254.0,1.4294513]
[1739035690702,0.68168884,96255.0,96254.0,1.4294513]
[1739035691046,0.66222406,96255.0,96254.0,1.4294513]
[1739035692359,0.55972041,96255.0,96254.0,1.4294513]
[1739035698466,0.41584506,96255.0,96254.0,1.4294513]
[1739035698683,0.43531832,96255.0,96254.0,1.4294513]
[1739035700016,0.75551832,96255.0,96254.0,1.4294513]
[1739035700547,0.83761832,96255.0,96254.0,1.4294513]
[1739035700750,0.97801182,96255.0,96254.0,1.4294513]
[1739035701006,0.95853856,96255.0,96254.0,1.4294513]
[1739035701242,0.91536698,96255.0,96254.0,1.4294513]
[1739035701665,0.95386698,96255.0,96254.0,1.4294513]
[1739035701875,0.94486698,96255.0,96254.0,1.4294513]
[1739035702086,0.96286698,96255.0,96254.0,1.4294513]
[1739035702549,0.94486698,96255.0,96254.0,1.4294513]
[1739035702745,0.95386698,96255.0,96254.0,1.4294513]
[1739035702960,0.92653491,96255.0,96254.0,1.4294513]
[1739035703153,0.88864506,96255.0,96254.0,1.4294513]
[1739035703341,0.87964506,96255.0,96254.0,1.4294513]
[1739035703537,0.76554506,96255.0,96254.0,1.4294513]
[1739035703738,0.78354506,96255.0,96254.0,1.4294513]
[1739035705011,0.77454506,96255.0,96254.0,1.4294513]
[1739035705211,0.78354506,96255.0,96254.0,1.4294513]
[1739035705415,0.77454506,96255.0,96254.0,1.4294513]
[1739035705620,0.76554506,96255.0,96254.0,1.4294513]
[1739035705909,0.78354506,96255.0,96254.0,1.4294513]
[1739035706277,0.77454506,96255.0,96254.0,1.4294513]
[1739035706473,0.78354506,96255.0,96254.0,1.4294513]
[1739035706671,0.79254506,96255.0,96254.0,1.4294513]
[1739035707904,0.78354506,96255.0,96254.0,1.4294513]
[1739035708108,0.77570506,96255.0,96254.0,1.4294513]
[1739035708311,0.72704506,96255.0,96254.0,1.4294513]
[1739035708491,0.73604506,96255.0,96254.0,1.4294513]
[1739035721409,0.72704506,96255.0,96254.0,1.4294513]
[1739035721797,0.71804506,96255.0,96254.0,1.4294513]
[1739035722001,0.72704506,96255.0,96254.0,1.4294513]
[1739035722372,0.73604506,96255.0,96254.0,1.4294513]
[1739035722563,0.72666886,96255.0,96254.0,1.4294513]
[1739035723156,0.73566886,96255.0,96254.0,1.4294513]
[1739035725347,0.72666886,96255.0,96254.0,1.4294513]
[1739035725747,0.73566886,96255.0,96254.0,1.4294513]
[1739035734299,0.60460393,96255.0,96254.0,1.4294513]
[1739035736604,0.59560393,96255.0,96254.0,1.4294513]
[1739035736741,0.58660393,96255.0,96254.0,1.4294513]
[1739035736946,0.60460393,96255.0,96254.0,1.4294513]
[1739035739135,0.49310028,96255.0,96254.0,1.5094513]
[1739035739696,0.48410028,96255.0,96254.0,1.5094513]
[1739035740729,0.49310028,96255.0,96254.0,1.5094513]
[1739035740891,0.50210028,96255.0,96254.0,1.5094513]
[1739035741752,0.51110028,96255.0,96254.0,1.5094513]
[1739035742327,0.50326028,96255.0,96254.0,1.5094513]
[1739035742559,0.51110028,96255.0,96254.0,1.5094513]
[1739035743376,0.50326028,96255.0,96254.0,1.5094513]
[1739035744164,0.49426028,96255.0,96254.0,1.5094513]
[1739035744363,0.17406028,96255.0,96254.0,1.5094513]
[1739035744614,0.16506028,96255.0,96254.0,1.5094513]
[1739035745028,0.00922428,96255.0,96254.0,1.5094513]
[1739035745233,0.01822428,96255.0,96254.0,1.5094513]
[1739035745440,0.01822428,96255.0,96254.0,1.6652883]
[1739035746064,0.00922428,96255.0,96254.0,1.6652883]
[1739035746271,0.00022428,96255.0,96254.0,1.6652883]
[1739035746690,0.00922428,96255.0,96254.0,1.6652883]
[1739035746911,0.00922428,96255.0,96254.0,1.76779195]
[1739035747120,0.00922428,96255.0,96254.0,1.81379195]
[1739035747306,0.02722428,96255.0,96254.0,1.81379195]
[1739035750709,0.16310282,96271.0,96255.0,0.08]
[1739035750903,0.155815,96268.0,96261.0,0.155825]
[1739035751108,0.155815,96268.0,96262.0,0.10179295]
[1739035752011,0.17210282,96271.0,96262.0,0.10179295]
[1739035752355,0.155818,96267.0,96262.0,0.10179295]
[1739035752787,0.155818,96267.0,96262.0,0.10279295]
[1739035753210,0.155823,96263.0,96262.0,0.10279295]
[1739035753421,0.155823,96263.0,96262.0,0.10479295]
[1739035753568,0.155823,96263.0,96262.0,0.081]
[1739035753783,0.155823,96263.0,96262.0,0.10279295]
[1739035754104,0.155823,96263.0,96262.0,0.08]
[1739035754304,0.155823,96263.0,96262.0,0.081]
[1739035754509,0.155823,96263.0,96262.0,0.082]
[1739035754714,0.155823,96263.0,96262.0,0.081]
[1739035755168,0.164823,96263.0,96262.0,0.082]
[1739035755718,0.164823,96263.0,96262.0,0.081]
[1739035756117,0.172823,96263.0,96262.0,0.082]
[1739035756538,0.172823,96263.0,96262.0,0.002]
[1739035758392,0.1729298,96263.0,96262.0,0.002]
[1739035769830,0.1729298,96263.0,96262.0,0.00222428]
[1739035773462,0.00994529,96271.0,96262.0,0.00222428]
[1739035773648,0.155823,96263.0,96262.0,0.00222428]
[1739035774955,0.155823,96263.0,96262.0,0.00122428]
[1739035775700,0.155823,96263.0,96262.0,0.00222428]
[1739035775930,0.155823,96263.0,96262.0,0.00022428]
[1739035776110,0.164823,96263.0,96262.0,0.00122428]
[1739035776308,0.165823,96263.0,96262.0,0.00222428]
[1739035784575,0.165823,96263.0,96254.0,1.40877126]
[1739035784947,0.165823,96263.0,96255.0,0.155834]
[1739035785115,0.165823,96263.0,96255.0,0.17762783]
[1739035785542,0.001,96263.0,96256.0,0.155834]
[1739035785943,0.01,96263.0,96257.0,0.02179259]
[1739035786146,0.164823,96263.0,96257.0,0.02179259]
[1739035786347,0.155823,96263.0,96255.0,0.1568738]
[1739035786484,0.155823,96263.0,96256.0,0.02179321]
[1739035786684,0.164823,96263.0,96256.0,0.02279321]
[1739035786884,0.165823,96263.0,96256.0,0.02279321]
[1739035787113,0.156823,96263.0,96256.0,0.02179321]
[1739035787310,0.001,96263.0,96256.0,0.02179321]
[1739035787658,0.155824,96262.0,96256.0,0.02283199]
[1739035787856,0.155824,96262.0,96256.0,0.02179321]
[1739035788564,0.009,96263.0,96256.0,0.02179321]
[1739035788767,0.012,96263.0,96256.0,0.17762721]
[1739035788970,0.167823,96263.0,96256.0,0.17762721]
[1739035789213,0.003,96262.0,96257.0,0.0767]
[1739035789609,0.003,96262.0,96258.0,0.02179196]
[1739035789980,0.158823,96263.0,96258.0,0.02179196]
[1739035790361,0.012,96262.0,96258.0,0.02179196]
[1739035791520,0.167825,96262.0,96258.0,0.02179196]
[1739035791663,0.155825,96262.0,96258.0,0.02179196]
[1739035791859,0.155825,96262.0,96258.0,0.02279196]
[1739035792062,0.166825,96262.0,96258.0,0.02379196]
[1739035796435,0.16704928,96262.0,96258.0,0.02379196]
[1739035797727,0.16704828,96262.0,96258.0,0.02379196]
[1739035800506,0.01122428,96262.0,96258.0,0.02379196]
[1739035800895,0.207768,96261.0,96258.0,0.02379196]
[1739035801249,0.155827,96260.0,96258.0,0.02379196]
[1739035801730,0.155827,96260.0,96258.0,0.02279196]
[1739035801969,0.155827,96260.0,96258.0,0.02179196]
[1739035802145,0.155827,96260.0,96258.0,0.02379196]
[1739035802318,0.155827,96260.0,96258.0,0.02279196]
[1739035802722,0.157827,96260.0,96258.0,0.02279196]
[1739035803126,0.155829,96259.0,96258.0,0.02279196]
[1739035803326,0.002,96260.0,96258.0,0.02279196]
[1739035803729,0.157829,96260.0,96258.0,0.02279196]
[1739035803929,0.166829,96260.0,96258.0,0.02379196]
[1739035804485,0.009,96260.0,96258.0,0.02279196]
[1739035804669,0.009,96260.0,96258.0,0.02379196]
[1739035804870,0.002,96259.0,96258.0,0.02379196]
[1739035805080,0.002,96259.0,96258.0,0.02279196]
[1739035805277,0.002,96259.0,96258.0,0.02379196]
[1739035805674,0.002,96259.0,96258.0,0.02279196]
[1739035806057,0.155826,96261.0,96258.0,0.02179196]
[1739035806256,0.155826,96261.0,96258.0,0.02279196]
[1739035806463,0.002,96259.0,96258.0,0.02279196]
[1739035806981,0.011,96259.0,96258.0,0.02379196]
[1739035807564,0.009,96259.0,96258.0,0.02279196]
[1739035807760,0.009,96259.0,96258.0,0.02379196]
[1739035808723,0.009,96259.0,96258.0,0.02279196]
[1739035809229,0.011,96259.0,96258.0,0.02379196]
[1739035810639,0.011,96259.0,96258.0,0.17962296]
[1739035810854,0.011,96259.0,96258.0,0.26186173]
[1739035811025,0.011,96259.0,96258.0,0.26082296]
[1739035811223,0.011,96259.0,96258.0,0.51332661]
[1739035811486,0.011,96259.0,96258.0,0.55892661]
[1739035811668,0.002,96259.0,96258.0,0.55792661]
[1739035812090,0.009,96259.0,96258.0,0.55792661]
[1739035812493,0.002,96259.0,96258.0,0.55792661]
[1739035812697,0.002,96259.0,96258.0,0.55692661]
[1739035812867,0.002,96259.0,96258.0,0.55992661]
[1739035813296,0.002,96259.0,96258.0,0.58110037]
[1739035813904,0.002,96259.0,96258.0,0.58410037]
[1739035814305,0.00022428,96262.0,96261.0,0.389026]
[1739035814536,0.00022428,96262.0,96261.0,0.49152965]
[1739035815740,0.00022428,96262.0,96261.0,0.49252965]
[1739035816338,0.00022428,96262.0,96261.0,0.49352965]
[1739035817670,0.00022428,96262.0,96261.0,0.51531487]
[1739035819878,0.00022428,96262.0,96261.0,0.32961122]
[1739035820630,0.00022428,96262.0,96261.0,0.32761122]
[1739035820809,0.00022428,96262.0,96261.0,0.32961122]
[1739035821022,0.00022428,96262.0,96261.0,0.33061122]
[1739035821380,0.00022428,96262.0,96261.0,0.32761122]
[1739035821666,0.00322428,96262.0,96261.0,0.32761122]
[1739035822291,0.00122428,96262.0,96261.0,0.32761122]
[1739035822474,0.00022428,96262.0,96261.0,0.32761122]
[1739035823689,0.00022428,96262.0,96261.0,0.32861122]
[1739035824281,0.00022428,96262.0,96261.0,0.33061122]
[1739035824574,0.00022428,96262.0,96261.0,0.32961122]
[1739035824944,0.00122428,96262.0,96261.0,0.32961122]
[1739035825145,0.00122428,96262.0,96261.0,0.32761122]
[1739035825596,0.00322428,96262.0,96261.0,0.32761122]
[1739035826793,0.00122428,96262.0,96261.0,0.32761122]
[1739035827198,0.00122428,96262.0,96261.0,0.32961122]
[1739035827829,0.00022428,96262.0,96261.0,0.32961122]
[1739035828201,0.00022428,96262.0,96261.0,0.33061122]